bitfinex-derivatives/quotes_SOLF0:USTF0_20240816
["timestamp","ask_amount","ask_price","bid_price","bid_amount"]
[1723838826432,1.0,141.24,141.16,39.15]
[1723838826637,1.0,141.24,141.15,33.99]
[1723838826838,6.16,141.24,141.16,3.5404]
[1723838827032,1.0,141.24,141.15,33.99]
[1723838827229,5.16,141.23,141.15,33.99]
[1723838827430,0.04945915,141.2,141.18,0.04859337]
[1723838831932,0.04945915,141.2,141.18,3.58839337]
[1723838832143,0.04945915,141.2,141.19,33.99]
[1723838832543,4.5386,141.24,141.21,3.5392]
[1723838832845,4.5386,141.24,141.21,37.5292]
[1723838833045,6.16,141.24,141.21,33.99]
[1723838833244,1.0,141.24,141.21,33.99]
[1723838833439,1.0,141.24,141.23,33.99]
[1723838833942,1.0,141.24,141.23,37.5287]
[1723838834243,1.0,141.24,141.22,0.04983621]
[1723838834738,1.0,141.24,141.14,0.3151]
[1723838834739,33.99,141.23,141.04,228.0]
[1723838834944,33.99,141.2,141.07,1.2756]
[1723838835144,1.3149,141.19,141.11,33.99]
[1723838835350,4.86882096,141.19,141.11,33.99]
[1723838835540,3.5403,141.17,141.12,3.5413]
[1723838835741,5.18747153,141.16,141.13,0.05204385]
[1723838836147,3.5409,141.15,141.13,0.05204385]
[1723838836939,8.72797153,141.16,141.13,37.58314385]
[1723838837445,3.58797153,141.16,141.13,34.04204385]
[1723838838056,0.04747153,141.16,141.13,37.58314385]
[1723838838545,0.04747153,141.16,141.13,0.05204385]
[1723838838947,8.68,141.18,141.17,439.48123847]
[1723838840148,42.67,141.18,141.17,416.14473847]
[1723838841549,8.68,141.18,141.17,416.14473847]
[1723838841945,3.54,141.18,141.17,416.14473847]
[1723838842242,8.68,141.18,141.17,416.14473847]
[1723838842637,3.54,141.18,141.17,416.14473847]
[1723838842843,8.68,141.18,141.17,416.14473847]
[1723838843750,3.54,141.18,141.17,416.14473847]
[1723838843942,8.68,141.18,141.17,416.14473847]
[1723838847449,42.67,141.18,141.17,171.23143847]
[1723838847644,42.67,141.18,141.17,152.25923847]
[1723838848041,49.75,141.18,141.17,152.25923847]
[1723838849948,49.75,141.18,141.17,148.42583847]
[1723838850153,3.542,141.1,141.08,1.3667]
[1723838851346,3.59584436,141.1,141.08,1.41812095]
[1723838851553,0.05384436,141.1,140.91,7.0932]
[1723838851849,42.65673022,141.12,141.03,33.99]
[1723838852850,3.5427,141.07,141.06,0.05123541]
[1723838854749,8.6827,141.07,141.06,0.05123541]
[1723838855546,3.5427,141.07,141.06,0.05123541]
[1723838855747,5.14,141.07,141.06,0.05123541]
[1723838856051,8.6826,141.08,141.06,0.05123541]
[1723838856448,3.5427,141.07,141.06,0.05123541]
[1723838857953,5.18959018,141.09,141.06,0.05123541]
[1723838858454,3.5425,141.08,141.06,0.05123541]
[1723838859657,3.59189018,141.09,141.06,0.05123541]
[1723838859847,0.04959018,141.09,141.06,0.05123541]
[1723838861060,3.5426,141.08,141.06,0.05123541]
[1723838862361,3.59189018,141.09,141.06,0.05123541]
[1723838862555,3.59189018,141.09,141.07,33.99]
[1723838864455,0.04959018,141.09,141.07,33.99]
[1723838864762,28.34,141.14,141.08,37.5325]
[1723838864962,3.5413,141.13,141.1,33.99]
[1723838865164,8.6813,141.13,141.1,33.99]
[1723838865853,8.73051372,141.13,141.1,34.03831355]
[1723838866059,3.5415,141.12,141.1,34.03831355]
[1723838866561,3.59061372,141.13,141.1,34.03831355]
[1723838867857,3.59061372,141.13,141.1,37.58031355]
[1723838868264,3.59061372,141.13,141.1,34.03831355]
[1723838868656,0.04921372,141.13,141.1,0.04831355]
[1723838869958,3.47170922,141.12,141.1,0.04831355]
[1723838870759,7.01340922,141.12,141.1,0.04831355]
[1723838871162,3.5417,141.11,141.1,0.04831355]
[1723838874163,3.5416,141.12,141.1,0.04831355]
[1723838874461,5.18921372,141.13,141.1,0.04831355]
[1723838875771,3.5416,141.12,141.1,0.04831355]
[1723838877264,5.18921372,141.13,141.11,33.99]
[1723838877265,8.73051372,141.13,141.11,33.99]
[1723838877463,0.04921372,141.13,141.11,33.99]
[1723838877767,5.14,141.17,141.12,33.99]
[1723838877967,3.5407,141.15,141.12,35.3829]
[1723838879056,3.5407,141.15,141.12,35.42950678]
[1723838880468,3.5406,141.16,141.12,38.97090678]
[1723838880670,5.14,141.17,141.14,33.99]
[1723838880861,3.5546671,141.2,141.14,33.99]
[1723838881055,3.5404,141.17,141.14,33.99]
[1723838881259,5.14,141.2,141.16,0.04964701]
[1723838881461,5.29289301,141.19,141.16,34.03964701]
[1723838881671,3.5398,141.19,141.16,34.03964701]
[1723838882258,5.14,141.2,141.16,34.03964701]
[1723838882458,5.29232738,141.19,141.16,34.03964701]
[1723838882775,5.14,141.2,141.16,34.03964701]
[1723838883365,3.5398,141.19,141.16,34.03964701]
[1723838884267,3.5401,141.18,141.16,34.03964701]
[1723838885071,3.5402,141.17,141.16,34.03964701]
[1723838885466,3.5401,141.18,141.16,34.03964701]
[1723838885672,5.14,141.2,141.16,34.03964701]
[1723838885876,5.29219665,141.19,141.16,34.03964701]
[1723838886072,5.14,141.2,141.16,34.03964701]
[1723838886263,3.5401,141.18,141.16,34.03964701]
[1723838888871,3.5401,141.18,141.16,0.04964701]
[1723838889076,3.5402,141.17,141.16,0.04964701]
[1723838890575,8.83305862,141.17,141.16,0.04964701]
[1723838890881,8.83337127,141.17,141.16,0.04964701]
[1723838894582,8.83340417,141.17,141.16,0.04964701]
[1723838895872,8.83340417,141.17,141.08,1.2742]
[1723838895873,5.29320417,141.17,141.08,1.2742]
[1723838896076,5.29320417,141.16,141.08,35.2642]
[1723838896476,3.5417,141.12,141.08,35.2642]
[1723838896682,3.5417,141.12,141.08,38.8065]
[1723838897184,3.59169102,141.11,141.09,0.05251566]
[1723838902379,0.04999102,141.11,141.09,0.05251566]
[1723838902772,5.14,141.15,141.1,33.99]
[1723838903183,3.5412,141.13,141.1,37.5318]
[1723838903380,5.29471633,141.12,141.09,0.05251566]
[1723838903683,5.14,141.15,141.09,0.05251566]
[1723838903884,5.29433963,141.14,141.13,33.99]
[1723838906579,17.86762904,141.15,141.13,33.99]
[1723838906787,5.29421852,141.14,141.13,33.99]
[1723838909384,3.5406,141.16,141.13,33.99]
[1723838909581,5.29273152,141.15,141.12,3.59046904]
[1723838909791,14.32682904,141.19,141.13,33.99]
[1723838910089,14.47964665,141.18,141.12,0.04916904]
[1723838910289,3.5411,141.14,141.12,0.04916904]
[1723838910490,5.29281761,141.13,141.12,0.04916904]
[1723838910691,5.29356153,141.13,141.12,0.04916904]
[1723838912191,3.541,141.14,141.12,0.04916904]
[1723838912391,3.541,141.14,141.13,33.99]
[1723838913896,3.541,141.14,141.13,13.6]
[1723838916602,3.5408,141.15,141.13,13.6]
[1723838921098,5.14,141.19,141.12,0.04916904]
[1723838921299,13.6,141.18,141.12,0.04916904]
[1723838921604,13.6,141.17,141.12,0.04916904]
[1723838921901,13.6,141.15,141.12,0.04916904]
[1723838922102,5.14,141.14,141.12,0.04916904]
[1723838922301,3.5412,141.13,141.12,0.04916904]
[1723838924293,3.5425,141.08,141.06,2.6333]
[1723838924497,3.5425,141.08,141.05,34.04]
[1723838925103,5.28829097,141.07,141.05,34.04]
[1723838925307,0.05332456,141.07,141.05,0.05306599]
[1723838925607,5.28873437,141.06,141.05,34.09306599]
[1723838925794,0.05332456,141.07,141.05,34.09306599]
[1723838926211,5.28870078,141.06,141.05,34.09306599]
[1723838928005,8.83170078,141.06,141.05,34.09306599]
[1723838928207,8.83170078,141.06,141.05,0.05306599]
[1723838928410,5.28870078,141.06,141.05,0.05306599]
[1723838929410,5.28870078,141.06,141.05,34.09306599]
[1723838929607,0.05332456,141.07,141.05,34.09306599]
[1723838929809,3.58295278,141.14,141.05,34.09306599]
[1723838929810,3.58295278,141.14,141.05,68.13306599]
[1723838930107,5.12,141.11,141.09,34.04]
[1723838930310,5.28757423,141.1,141.09,34.04]
[1723838931312,5.28757423,141.11,141.09,34.04]
[1723838931614,5.12,141.15,141.1,34.04]
[1723838931802,5.12,141.15,141.12,34.04]
[1723838932002,8.6609,141.15,141.12,34.04]
[1723838932603,3.5409,141.15,141.12,34.04]
[1723838933307,54.78484795,141.18,141.12,34.04]
[1723838933807,3.541,141.14,141.12,34.04]
[1723838939011,3.5408,141.15,141.12,34.04]
[1723838941020,5.12,141.18,141.12,34.04]
[1723838941224,39.16,141.18,141.11,0.044666]
[1723838941621,3.5414,141.13,141.11,0.044666]
[1723838942014,3.60582904,141.14,141.11,0.044666]
[1723838942324,3.5414,141.13,141.11,0.044666]
[1723838942517,3.49495587,141.14,141.11,0.044666]
[1723838942715,34.04,141.13,141.04,5.12]
[1723838942919,34.04,141.12,141.03,34.04]
[1723838943123,34.04,141.12,141.01,34.04]
[1723838943426,34.04,141.1,141.01,34.04]
[1723838943622,3.5434,141.05,141.01,34.04]
[1723838943828,5.33185766,141.04,141.02,0.05179377]
[1723838944022,5.33185766,141.04,141.02,13.66179377]
[1723838944023,0.05069842,141.04,141.02,13.66179377]
[1723838945324,0.05069842,141.04,141.03,13.61]
[1723838945933,0.05069842,141.04,141.03,34.0]
[1723838947821,3.59419842,141.04,141.03,34.0]
[1723838948022,3.59419842,141.04,141.02,34.05179377]
[1723838948424,3.5437,141.03,141.02,34.05179377]
[1723838950827,0.05069842,141.04,141.02,34.05179377]
[1723838951027,0.05069842,141.04,141.03,34.0]
[1723838953238,3.59419842,141.04,141.03,34.0]
[1723838954148,3.59419842,141.04,141.02,34.05179377]
[1723838957050,0.05069842,141.04,141.02,0.05179377]
[1723838957249,3.5437,141.03,141.02,0.05179377]
[1723838962253,0.05069842,141.04,141.02,0.05179377]
[1723838962254,8.71429842,141.04,141.02,0.05179377]
[1723838962760,3.5437,141.03,141.02,0.05179377]
[1723838964558,5.17069842,141.04,141.02,0.05179377]
[1723838964559,0.05069842,141.04,141.02,34.05179377]
[1723838964856,5.12,141.08,141.03,34.0]
[1723838965056,3.5429,141.07,141.03,34.0]
[1723838965757,3.5429,141.07,141.03,37.5436]
[1723838966460,3.5429,141.07,141.02,0.05179377]
[1723838966461,91.76821481,141.15,141.06,34.0]
[1723838966657,10.40068182,141.14,141.06,34.0]
[1723838966850,3.5422,141.1,141.06,37.5428]
[1723838967055,5.28068182,141.09,141.06,34.0]
[1723838967365,3.5422,141.09,141.07,0.04920089]
[1723838968159,5.12,141.14,141.07,0.04920089]
[1723838968354,5.28065674,141.13,141.07,0.04920089]
[1723838968564,5.28065674,141.12,141.07,0.04920089]
[1723838968863,5.28065674,141.11,141.07,0.04920089]
[1723838969061,5.28065674,141.1,141.07,0.04920089]
[1723838969355,5.12,141.14,141.07,0.04920089]
[1723838969553,5.28008304,141.13,141.07,3.59190089]
[1723838969759,3.542,141.1,141.07,3.59190089]
[1723838969959,3.542,141.1,141.07,0.04920089]
[1723838973867,3.542,141.1,141.08,13.61]
[1723838976857,54.19720785,141.15,141.09,13.61]
[1723838977054,5.12,141.13,141.09,13.61]
[1723838977264,5.28002991,141.12,141.11,0.04540126]
[1723838978066,8.82162991,141.12,141.11,0.04540126]
[1723838978260,8.82156316,141.12,141.11,0.04540126]
[1723838978759,3.5428,141.07,141.04,13.61]
[1723838978961,7.16675746,141.07,141.04,13.61]
[1723838979162,3.5428,141.07,141.04,13.61]
[1723838979563,3.5428,141.07,141.05,13.61]
[1723838979865,3.5906407,141.07,141.05,0.05047453]
[1723838982671,3.543,141.06,141.05,0.05047453]
[1723838983866,5.28167133,141.06,140.99,68.20432558]
[1723838984062,5.28298456,141.05,140.99,68.20432558]
[1723838984265,5.28298456,141.04,140.99,68.20432558]
[1723838984564,3.5444,141.01,140.99,68.20432558]
[1723838984961,3.59825498,141.01,140.99,68.25384575]
[1723838985971,3.5445,141.0,140.99,68.25384575]
[1723838986473,3.5445,141.0,140.99,0.04952017]
[1723838987975,3.59815498,141.01,140.99,0.04952017]
[1723838992472,3.5445,141.0,140.99,0.04952017]
[1723838993177,3.5457,140.95,140.87,5.1]
[1723838993381,3.5457,140.95,140.92,34.0]
[1723838993680,3.5462,140.93,140.92,34.0]
[1723838993976,3.5462,140.93,140.9,1.3208]
[1723838993977,8.57505694,140.97,140.9,1.3208]
[1723838994181,5.287663,140.96,140.9,1.3208]
[1723838994478,5.33676168,140.95,140.92,0.05150133]
[1723838994685,3.5462,140.93,140.92,0.05150133]
[1723838994872,8.833863,140.93,140.92,0.05150133]
[1723838995390,3.5462,140.93,140.92,0.05150133]
[1723838996883,3.5461,140.94,140.92,0.05150133]
[1723838998590,5.1,140.93,140.92,0.05150133]
[1723838999113,5.1,140.94,140.92,0.05150133]
[1723839000386,5.1,140.94,140.92,3.59800133]
[1723839001884,0.04909868,140.95,140.93,3.5462]
[1723839002081,5.14909868,140.95,140.92,0.05150133]
[1723839003785,3.5462,140.93,140.92,0.05150133]
[1723839007494,3.5461,140.94,140.92,0.05150133]
[1723839009390,3.5462,140.93,140.92,0.05150133]
[1723839010189,0.04909868,140.95,140.92,0.05150133]
[1723839010389,5.14909868,140.95,140.92,0.05150133]
[1723839011398,8.69499868,140.95,140.92,0.05150133]
[1723839013397,5.14909868,140.95,140.92,0.05150133]
[1723839013699,0.04909868,140.95,140.92,0.05150133]
[1723839014193,3.59489868,140.95,140.92,0.05150133]
[1723839014388,0.04909868,140.95,140.92,0.05150133]
[1723839015401,0.04909868,140.95,140.92,3.59780133]
[1723839015593,0.04909868,140.95,140.92,0.05150133]
[1723839016693,0.04909868,140.95,140.92,3.59800133]
[1723839017908,3.59479868,140.95,140.92,0.05150133]
[1723839019803,0.04909868,140.95,140.92,3.59800133]
[1723839020394,0.04909868,140.95,140.92,0.05150133]
[1723839020599,5.1,141.0,140.93,34.0]
[1723839020901,8.64187615,141.0,140.96,34.0]
[1723839021097,3.54187615,141.0,140.97,3.5452]
[1723839021304,5.1,141.03,140.97,3.5452]
[1723839021612,3.5443,141.01,140.96,37.5453]
[1723839021805,3.59015615,141.01,140.99,0.05098696]
[1723839022304,3.5445,141.0,140.99,0.05098696]
[1723839024603,0.04585615,141.01,140.99,0.05098696]
[1723839025205,3.61590421,141.01,140.99,0.05098696]
[1723839025409,0.04585615,141.01,140.99,0.05098696]
[1723839025700,3.5445,141.0,140.99,0.05098696]
[1723839026508,7.10355675,141.0,140.99,0.05098696]
[1723839027009,3.55905675,141.0,140.99,0.05098696]
[1723839027206,0.04585615,141.01,140.99,0.05098696]
[1723839027413,3.5445,141.0,140.99,0.05098696]
[1723839027609,7.03477243,141.0,140.99,0.05098696]
[1723839028611,3.49027243,141.0,140.99,0.05098696]
[1723839032513,3.59025615,141.01,140.99,0.05098696]
[1723839032713,0.04585615,141.01,140.99,0.05098696]
[1723839032901,3.5815112,141.01,140.99,0.05098696]
[1723839033414,0.04585615,141.01,140.99,3.59568696]
[1723839035215,0.04585615,141.01,140.99,0.05098696]
[1723839039418,0.04585615,141.01,140.99,3.59568696]
[1723839039916,3.5445,141.0,140.99,0.05098696]
[1723839040816,8.83111163,141.0,140.99,0.05098696]
[1723839046319,34.0,140.97,140.92,2.6717]
[1723839046525,10.36661163,140.96,140.92,2.6717]
[1723839046825,3.5459,140.95,140.9,3.5469]
[1723839047319,3.59803398,140.94,140.91,0.04968865]
[1723839047722,0.05203398,140.94,140.91,0.04968865]
[1723839047922,3.5465,140.92,140.91,0.04968865]
[1723839048725,42.83603103,140.92,140.91,0.04968865]
[1723839051828,37.5465,140.92,140.91,0.04968865]
[1723839052029,42.83727603,140.92,140.91,0.04968865]
[1723839052719,13.91727603,140.92,140.91,0.04968865]
[1723839059734,8.83727603,140.92,140.91,0.04968865]
[1723839060039,13.91727603,140.92,140.91,0.04968865]
[1723839060537,8.6265,140.92,140.91,0.04968865]
[1723839060737,13.91720908,140.92,140.91,0.04968865]
[1723839063237,10.37070908,140.92,140.91,0.04968865]
[1723839063625,5.08,140.92,140.91,0.04968865]
[1723839063834,8.6265,140.92,140.91,0.04968865]
[1723839064136,5.29017704,140.92,140.91,0.04968865]
[1723839064325,0.05203398,140.94,140.91,0.04968865]
[1723839064530,5.28912768,140.93,140.91,0.04968865]
[1723839064738,0.05203398,140.94,140.91,0.04968865]
[1723839064936,5.28889237,140.93,140.91,0.04968865]
[1723839065139,0.05203398,140.94,140.91,0.04968865]
[1723839065341,5.28884439,140.93,140.91,0.04968865]
[1723839065544,3.5465,140.92,140.91,0.04968865]
[1723839065933,5.28940192,140.92,140.91,0.04968865]
[1723839067239,8.83590192,140.92,140.91,0.04968865]
[1723839067635,5.28940192,140.92,140.91,0.04968865]
[1723839068043,3.5463,140.93,140.91,0.04968865]
[1723839068243,5.28955358,140.92,140.91,0.04968865]
[1723839069342,39.28955358,140.92,140.91,0.04968865]
[1723839069739,42.83605358,140.92,140.91,0.04968865]
[1723839070336,39.28955358,140.92,140.86,4.0241]
[1723839070540,3.54218576,140.95,140.86,4.0241]
[1723839070541,10.36955358,140.91,140.86,4.0241]
[1723839070736,5.28955358,140.9,140.86,4.0241]
[1723839070948,84.9820336,140.97,140.86,38.0241]
[1723839071242,10.36975365,140.96,140.88,34.0]
[1723839071544,0.05280638,140.93,140.9,0.05438485]
[1723839071746,5.28975365,140.95,140.9,0.05438485]
[1723839071747,3.62697401,140.94,140.9,0.05438485]
[1723839071946,3.62697401,140.94,140.91,3.5466]
[1723839072143,5.08,140.95,140.92,1.3389]
[1723839072645,8.66191182,140.95,140.92,1.3389]
[1723839073047,8.70807912,140.95,140.92,1.3389]
[1723839074449,8.70807912,140.95,140.92,4.8854]
[1723839074948,8.70807912,140.95,140.92,1.3389]
[1723839077047,8.70807912,140.95,140.92,2.6339]
[1723839078053,3.5456,140.96,140.92,2.6339]
[1723839078054,34.0,141.01,140.92,36.6339]
[1723839078252,10.36629327,141.0,140.92,36.6339]
[1723839078452,5.28629327,140.99,140.92,36.6339]
[1723839079251,0.04560495,140.97,140.94,0.04602779]
[1723839079755,0.04560495,140.97,140.95,3.5457]
[1723839080449,0.04560495,140.97,140.94,3.59192779]
[1723839082152,3.59090495,140.97,140.94,0.04602779]
[1723839084355,3.59090495,140.97,140.94,3.59202779]
[1723839084551,0.04560495,140.97,140.94,3.59202779]
[1723839085757,0.04560495,140.97,140.95,3.5457]
[1723839085960,0.04560495,140.97,140.94,0.04602779]
[1723839086456,0.04560495,140.97,140.94,3.59182779]
[1723839086957,0.04560495,140.97,140.95,3.5457]
[1723839087158,3.47906567,140.96,140.94,34.04602779]
[1723839087358,0.04560495,140.97,140.94,34.04602779]
[1723839087655,0.04560495,140.97,140.94,0.04602779]
[1723839087656,3.5131081,140.96,140.94,0.04602779]
[1723839088851,3.5131081,140.96,140.94,3.59192779]
[1723839090859,5.08,141.0,140.95,34.0]
[1723839091063,5.08,141.0,140.97,34.0]
[1723839091259,3.46310828,141.02,140.97,34.0]
[1723839091558,5.08,141.05,140.99,34.0]
[1723839091750,8.7840472,141.04,140.99,34.0]
[1723839091955,5.08,141.05,141.0,3.5443]
[1723839091956,3.4925408,141.03,141.0,3.5443]
[1723839092161,0.04786725,141.03,141.0,3.59554261]
[1723839092367,3.67728699,141.03,141.0,3.59554261]
[1723839092961,3.67728699,141.03,141.0,0.05124261]
[1723839093364,0.04786725,141.03,141.0,0.05124261]
[1723839093564,0.04786725,141.03,141.0,3.59564261]
[1723839095258,3.59156725,141.03,141.0,0.05124261]
[1723839095661,0.04786725,141.03,141.0,0.05124261]
[1723839096062,0.04786725,141.03,141.0,3.59554261]
[1723839096462,0.04786725,141.03,141.0,0.05124261]
[1723839097779,3.59176725,141.03,141.0,0.05124261]
[1723839098283,0.04786725,141.03,141.0,3.59574261]
[1723839100579,0.04786725,141.03,141.01,3.5441]
[1723839101386,0.04786725,141.03,141.02,3.544]
[1723839101590,3.45985389,141.11,141.02,34.0]
[1723839101782,5.28166798,141.1,141.04,34.0]
[1723839102088,7.08267834,141.1,141.06,3.5428]
[1723839102281,5.28194491,141.09,141.06,3.5428]
[1723839102484,7.08267834,141.1,141.06,3.5428]
[1723839102682,7.08267834,141.1,141.06,3.59169333]
[1723839103383,3.54067834,141.1,141.07,3.5426]
[1723839103584,5.08,141.12,141.07,3.5426]
[1723839103785,5.28140557,141.11,141.07,3.5426]
[1723839103990,3.45838213,141.1,141.07,3.5426]
[1723839104486,3.5418,141.11,141.07,3.5426]
[1723839105287,7.1539124,141.1,141.06,3.59179333]
[1723839105488,3.5421,141.1,141.06,3.59179333]
[1723839105988,3.55688933,141.09,141.06,0.04889333]
[1723839106184,5.08,141.12,141.06,0.04889333]
[1723839106382,5.28141576,141.11,141.06,0.04889333]
[1723839106585,3.5421,141.1,141.06,3.59179333]
[1723839107387,3.46264214,141.09,141.06,3.59179333]
[1723839108191,3.5421,141.1,141.06,3.59179333]
[1723839108793,7.08552414,141.1,141.06,3.59179333]
[1723839110492,7.08552414,141.1,141.07,3.5427]
[1723839110987,3.54342414,141.1,141.06,34.04889333]
[1723839111189,5.08,141.12,141.06,34.04889333]
[1723839111393,5.06,141.15,141.06,34.04889333]
[1723839111584,3.47893399,141.12,141.06,34.04889333]
[1723839112091,3.5418,141.11,141.07,3.5426]
[1723839112987,3.5418,141.11,141.06,34.04889333]
[1723839113388,3.5418,141.11,141.07,3.5426]
[1723839113894,3.5418,141.11,141.08,13.61]
[1723839114486,3.5418,141.11,141.07,3.5426]
[1723839114691,3.5418,141.11,141.07,17.1526]
[1723839118795,3.47893399,141.12,141.07,13.61]
[1723839119098,18.67,141.15,141.07,13.61]
[1723839119494,55.31406809,141.13,141.07,13.61]
[1723839119797,3.5419,141.11,141.07,13.61]
[1723839120000,3.56797532,141.1,141.07,13.61]
[1723839120497,3.56797532,141.1,141.07,17.1527]
[1723839121493,51.76380863,141.13,141.09,13.61]
[1723839121992,5.06,141.19,141.12,13.61]
[1723839122197,8.81765157,141.18,141.1,0.04516511]
[1723839122391,3.53821267,141.18,141.16,13.61]
[1723839122694,1.0,141.24,141.16,13.61]
[1723839122902,1.0,141.24,141.18,13.61]
[1723839123697,3.539,141.22,141.2,0.04644263]
[1723839124092,1.0,141.24,141.2,0.04644263]
[1723839124294,3.5392,141.21,141.2,0.04644263]
[1723839132904,1.0,141.24,141.2,0.04644263]
[1723839132905,3.5391,141.22,141.2,0.04644263]
[1723839133209,1.0,141.24,141.2,34.04644263]
[1723839133700,1.0,141.24,141.21,34.0]
[1723839134293,7.094,141.27,141.23,34.0]
[1723839134498,7.094,141.27,141.25,34.0]
[1723839134907,7.094,141.27,141.24,0.04473631]
[1723839135808,3.5382,141.25,141.24,0.04473631]
[1723839136010,8.457,141.29,141.24,0.04473631]
[1723839136311,3.5381,141.26,141.24,0.04473631]
[1723839136506,8.457,141.29,141.24,0.04473631]
[1723839136713,3.5382,141.25,141.24,0.04473631]
[1723839136903,39.04,141.25,141.14,78.16985648]
[1723839137211,3.5404,141.17,141.14,78.16985648]
[1723839138013,3.59039653,141.17,141.14,78.22282102]
[1723839138406,3.5405,141.16,141.14,0.05296454]
[1723839139314,0.04999653,141.17,141.15,34.0]
[1723839140310,5.04,141.21,141.16,1.3932]
[1723839140512,3.5396,141.2,141.16,4.9337]
[1723839140908,3.5396,141.2,141.18,34.0]
[1723839141507,3.5396,141.2,141.18,34.04843621]
[1723839142311,3.5393,141.21,141.18,34.04843621]
[1723839142713,3.50989711,141.22,141.18,34.04843621]
[1723839142916,3.5393,141.21,141.18,34.04843621]
[1723839144201,3.5395,141.2,141.18,34.04843621]
[1723839144404,5.04,141.23,141.18,0.04843621]
[1723839145101,3.5396,141.2,141.18,0.04843621]
[1723839145613,3.5397,141.19,141.18,0.04843621]
[1723839146009,7.01663734,141.19,141.18,0.04843621]
[1723839154609,3.47693734,141.19,141.09,1.3637]
[1723839154909,5.06,141.18,141.09,36.6732]
[1723839155108,3.5414,141.13,141.09,36.6732]
[1723839155614,8.6014,141.13,141.09,36.6732]
[1723839155817,0.05014244,141.12,141.1,0.0532393]
[1723839156617,3.59164244,141.12,141.1,0.0532393]
[1723839157522,0.05014244,141.12,141.1,0.0532393]
[1723839158016,0.05014244,141.12,141.11,34.0]
[1723839161225,3.59164244,141.12,141.1,1.4116393]
[1723839161424,0.05014244,141.12,141.1,0.0532393]
[1723839161817,3.5417,141.11,141.1,0.0532393]
[1723839163021,8.6017,141.11,141.1,0.0532393]
[1723839165532,13.88273932,141.11,141.1,0.0532393]
[1723839166526,8.6017,141.11,141.1,0.0532393]
[1723839166730,13.88279755,141.11,141.1,0.0532393]
[1723839169834,5.28109755,141.11,141.1,0.0532393]
[1723839170032,8.63164244,141.12,141.1,0.0532393]
[1723839170218,5.28039447,141.11,141.1,0.0532393]
[1723839170529,0.05014244,141.12,141.1,0.0532393]
[1723839170728,0.05014244,141.12,141.11,34.0]
[1723839171726,3.5407,141.15,141.11,37.5417]
[1723839172323,5.04,141.17,141.12,3.5415]
[1723839172526,1.3964,141.2,141.1,2.6584]
[1723839172729,5.04,141.19,141.14,34.0]
[1723839172927,5.04,141.19,141.14,34.04771057]
[1723839173223,5.04,141.19,141.14,37.58851057]
[1723839173425,8.56860429,141.19,141.14,37.58851057]
[1723839173818,8.56860429,141.19,141.14,34.04771057]
[1723839174134,8.56860429,141.19,141.14,0.04771057]
[1723839174431,3.5404,141.17,141.14,0.04771057]
[1723839175925,3.5401,141.18,141.14,0.04771057]
[1723839176317,3.5401,141.18,141.14,3.58861057]
[1723839176524,3.5401,141.18,141.14,37.58861057]
[1723839176725,8.5798,141.19,141.14,37.58861057]
[1723839177320,8.5798,141.19,141.15,3.5407]
[1723839178237,5.04,141.19,141.15,3.5407]
[1723839178423,3.5396,141.2,141.16,37.5404]
[1723839179026,8.58956097,141.21,141.16,37.5404]
[1723839179533,5.04,141.21,141.17,0.04658608]
[1723839179720,8.3856,141.26,141.19,34.0]
[1723839180030,7.094,141.29,141.21,3.5391]
[1723839180236,12.134,141.27,141.21,3.59264115]
[1723839180440,12.134,141.27,141.21,37.59264115]
[1723839180624,12.134,141.27,141.22,3.5388]
[1723839180826,7.094,141.27,141.23,0.04952743]
[1723839181233,10.6316,141.28,141.23,3.58822743]
[1723839181432,10.6316,141.28,141.23,0.04952743]
[1723839182143,10.6316,141.28,141.23,34.04952743]
[1723839182436,12.36353233,141.27,141.24,1.3522]
[1723839182631,7.094,141.27,141.24,1.3522]
[1723839182945,7.094,141.27,141.24,4.8906]
[1723839183138,10.6317,141.27,141.24,1.3522]
[1723839183336,7.094,141.27,141.24,1.3522]
[1723839183637,5.04,141.29,141.24,1.3522]
[1723839183638,10.6316,141.28,141.24,1.3522]